fUST/lending_fUST_20250206
["ID","MTS","AMOUNT","RATE_DAILY","PERIOD"]
[351908874,1738834256684,-500.0,0.00014931,2]
[351908875,1738834256693,-574.16,0.00014931,2]
[351908876,1738834256702,-500.0,0.00014931,2]
[351908877,1738834256711,-500.0,0.00014931,2]
[351908878,1738834256721,-500.0,0.00014931,2]
[351908879,1738834256730,-750.92,0.00014931,2]
[351908880,1738834256739,-1106.6,0.00014931,2]
[351908881,1738834256749,-237.23736661,0.00014931,2]
[351908882,1738834256759,-2675.64,0.00014931,2]
[351908883,1738834256768,-500.0,0.00014931,2]
[351908884,1738834256777,-500.0,0.00014931,2]
[351908885,1738834256787,-500.0,0.00014931,2]
[351908886,1738834256796,-757.91,0.00014931,2]
[351908887,1738834256805,-1339.04,0.00014931,2]
[351908888,1738834256814,-1309.14,0.00014931,2]
[351908889,1738834256825,-616.48,0.00014931,2]
[351908890,1738834256834,-500.0,0.00014931,2]
[351908891,1738834256843,-500.0,0.00014931,2]
[351908892,1738834256852,-500.0,0.00014931,2]
[351908893,1738834256862,-972.58,0.00014931,2]
[351908894,1738834256874,-1184.34,0.00014931,2]
[351908895,1738834256883,-636.86,0.00014931,2]
[351908896,1738834256892,-500.0,0.00014931,2]
[351908897,1738834256902,-1600.88,0.00014931,2]
[351908898,1738834256911,-500.0,0.00014931,2]
[351908899,1738834256921,-1110.8,0.00014931,2]
[351908900,1738834256932,-500.0,0.00014931,2]
[351908901,1738834256942,-500.0,0.00014931,2]
[351908902,1738834256951,-621.92,0.00014931,2]
[351908903,1738834256960,-500.0,0.00014931,2]
[351908904,1738834256971,-672.08,0.00014931,2]
[351908905,1738834256980,-429.292153,0.00014931,2]
[351908906,1738834256989,-651.0,0.00014931,2]
[351908907,1738834256999,-429.292153,0.00014931,2]
[351908908,1738834257009,-151.0,0.00014931,2]
[351908909,1738834257019,-500.0,0.00014931,2]
[351908910,1738834257028,-500.0,0.00014931,2]
[351908911,1738834257038,-3154.41,0.00014931,2]
[351908912,1738834257047,-603.7,0.00014931,2]
[351908913,1738834257057,-14070.43,0.00014931,2]
[351908914,1738834257066,-151.0,0.00014931,2]
[351908915,1738834257077,-1109.57,0.00014931,2]
[351908916,1738834257086,-640.44296156,0.00014931,2]
[351908917,1738834257095,-500.0,0.00014931,2]
[351908918,1738834257105,-1987.86,0.00014931,2]
[351908919,1738834257114,-1309.28,0.00014931,2]
[351908920,1738834257124,-500.0,0.00014931,2]
[351908921,1738834257133,-1208.15,0.00014931,2]
[351908922,1738834257143,-819.82,0.00014931,2]
[351908923,1738834257152,-500.0,0.00014931,2]
[351908924,1738834257161,-585.26779649,0.00014931,2]
[351908925,1738834257171,-1628.53,0.00014931,2]
[351908926,1738834257180,-39499.12,0.00014931,2]
[351908927,1738834257189,-5682.69187166,0.00014931,2]
[351908928,1738834257352,-495.28838552,0.00013698,2]
[351908929,1738834257871,-157.39731702,0.00013599,2]
[351908930,1738834257881,-4.71161448,0.00013698,2]
[351908931,1738834257890,-500.0,0.00013698,2]
[351908932,1738834257900,-500.0,0.00013698,2]
[351908933,1738834257910,-500.0,0.00013698,2]
[351908934,1738834257920,-500.0,0.00013698,2]
[351908935,1738834257933,-500.0,0.00013698,2]
[351908936,1738834257943,-500.0,0.00013835,2]
[351908937,1738834257953,-500.0,0.00013835,2]
[351908938,1738834257963,-500.0,0.00013835,2]
[351908939,1738834257973,-500.0,0.00013835,2]
[351908940,1738834257982,-239.6682485,0.00013835,2]
[351908944,1738835141146,-1693.58538342,0.00010633,2]
[351908945,1738835226096,-1578.99170027,0.00010527,2]
[351908946,1738835226117,-571.57385938,0.00010633,2]
[351908947,1738835226139,-235.27259716,0.00010958,2]
[351908948,1738835241106,-421.32357527,0.00010848,2]
[351908949,1738835241128,-64.72740284,0.00010958,2]
[351908950,1738835241152,-319.70962116,0.00010959,2]
[351908951,1738835253105,-464.30037884,0.00010959,2]
[351908952,1738835253128,-653.34,0.00010959,2]
[351908953,1738835253151,-544.45,0.00010959,2]
[351908954,1738835253172,-433.32973521,0.00010959,2]
[351908955,1738835345121,-300.0,0.00010958,2]
[351908956,1738835345141,-840.9608803,0.0001192,2]
[351908957,1738835345162,-24660.27464176,0.00012006,2]
[351908958,1738835345189,-239.72535824,0.00012006,2]
[351908959,1738835345211,-420.0,0.00012042,2]
[351908960,1738835353831,439.42,0.00010959,2]
[351908961,1738835360113,-900.0,0.0001315,2]
[351908962,1738835360139,-556.04395132,0.00013233,2]
[351908963,1738835364310,366.18,0.00010959,2]
[351908964,1738835374871,305.15,0.00010959,2]
[351908965,1738835385381,254.3,0.00010959,2]
[351908966,1738835396207,211.91,0.00010959,2]
[351908967,1738835406487,176.59,0.00010959,2]
[351908968,1738835416984,883.0,0.00010959,2]
[351909036,1738835433294,-272.126759,0.00013489,2]
[351909037,1738835433304,-650.8737079,0.00013589,2]
[351909038,1738835433315,-300.0,0.00013599,2]
[351909039,1738835433326,-3434.5548883,0.000136,2]
[351909045,1738835438532,-85153.50189497,0.000136,2]
[351909048,1738835438589,-67163.63045971,0.000136,2]
[351909050,1738835438599,-7438.69753278,0.00013667,2]
[351909052,1738835438608,-507.99791894,0.00013673,2]
[351909053,1738835438618,-506.12498987,0.00013673,2]
[351909054,1738835438627,-500.0,0.00013673,2]
[351909055,1738835438636,-500.0,0.00013697,2]
[351909056,1738835438646,-234.76121101,0.00013697,2]
[351909057,1738835438655,-500.0,0.00013698,2]
[351909058,1738835438664,-505.33094631,0.00013698,2]
[351909059,1738835438674,-500.0,0.00013698,2]
[351909060,1738835438684,-500.0,0.00013698,2]
[351909061,1738835438693,-500.0,0.00013698,2]
[351909062,1738835438703,-432.35824208,0.00013698,2]
[351909063,1738835438712,-500.0,0.00013698,2]
[351909064,1738835438722,-500.0,0.00013698,2]
[351909065,1738835438731,-500.0,0.00013698,2]
[351909066,1738835438740,-500.0,0.00013698,2]
[351909067,1738835438930,-500.0,0.00013698,2]
[351909068,1738835438941,-500.0,0.00013698,2]
[351909069,1738835438951,-500.0,0.00013698,2]
[351909070,1738835438961,-500.0,0.00013698,2]
[351909071,1738835438971,-500.0,0.00013698,2]
[351909072,1738835438980,-500.0,0.00013698,2]
[351909073,1738835438989,-500.0,0.00013698,2]
[351909074,1738835438999,-550.04,0.00013698,2]
[351909075,1738835439009,-500.0,0.00013698,2]
[351909076,1738835439019,-500.0,0.00013698,2]
[351909077,1738835439028,-629.2,0.00013698,2]
[351909078,1738835439038,-571.15,0.00013698,2]
[351909079,1738835439047,-500.0,0.00013698,2]
[351909080,1738835439057,-500.0,0.00013698,2]
[351909081,1738835439066,-500.0,0.00013698,2]
[351909082,1738835439078,-500.0,0.00013698,2]
[351909083,1738835439089,-500.0,0.00013698,2]
[351909084,1738835439098,-500.0,0.00013698,2]
[351909085,1738835439109,-500.0,0.00013698,2]
[351909086,1738835439119,-500.0,0.00013698,2]
[351909087,1738835439128,-1051.97,0.00013698,2]
[351909088,1738835439137,-500.0,0.00013698,2]
[351909089,1738835439147,-500.0,0.00013698,2]
[351909090,1738835439156,-500.0,0.00013698,2]
[351909091,1738835439166,-967.1,0.00013698,2]
[351909092,1738835439175,-465.47798974,0.00013698,2]
[351909093,1738835439186,-829.97,0.00013698,2]
[351909094,1738835439197,-615.5,0.00013698,2]
[351909095,1738835439207,-500.0,0.00013698,2]
[351909096,1738835439217,-500.0,0.00013698,2]
[351909097,1738835439227,-505.53,0.00013698,2]
[351909098,1738835439237,-500.0,0.00013698,2]
[351909099,1738835439246,-500.0,0.00013698,2]
[351909100,1738835439256,-500.0,0.00013698,2]
[351909101,1738835439266,-500.0,0.00013698,2]
[351909102,1738835439276,-500.0,0.00013698,2]
[351909103,1738835439286,-500.0,0.00013698,2]
[351909104,1738835439295,-500.0,0.00013698,2]
[351909105,1738835439305,-500.0,0.00013698,2]
[351909106,1738835439315,-500.0,0.00013698,2]
[351909107,1738835439325,-500.0,0.00013698,2]
[351909108,1738835439336,-196.03949853,0.00013698,2]
[351909109,1738835439345,-992.96,0.00013698,2]
[351909110,1738835439354,-794.86,0.00013698,2]
[351909111,1738835439364,-500.0,0.00013698,2]
[351909112,1738835439375,-500.0,0.00013698,2]
[351909113,1738835439385,-500.0,0.00013698,2]
[351909114,1738835439395,-1307.45,0.00013698,2]
[351909115,1738835439409,-500.0,0.00013698,2]
[351909116,1738835439419,-500.0,0.00013698,2]
[351909117,1738835439428,-500.0,0.00013698,2]
[351909118,1738835439437,-500.0,0.00013698,2]
[351909119,1738835439447,-500.0,0.00013698,2]
[351909120,1738835439456,-500.0,0.00013698,2]
[351909121,1738835439466,-872.15,0.00013698,2]
[351909122,1738835439475,-500.0,0.00013698,2]
[351909123,1738835439485,-500.0,0.00013698,2]
[351909124,1738835439494,-500.0,0.00013698,2]
[351909125,1738835439504,-500.0,0.00013698,2]
[351909126,1738835439513,-352.4410277,0.00013698,2]
[351909127,1738835439523,-500.0,0.00013698,2]
[351909128,1738835439532,-500.0,0.00013698,2]
[351909129,1738835439541,-527.98,0.00013698,2]
[351909130,1738835439551,-500.0,0.00013698,2]
[351909131,1738835439560,-500.0,0.00013698,2]
[351909132,1738835439570,-504.7154657,0.00013698,2]
[351909133,1738835439579,-500.0,0.00013698,2]
[351909134,1738835439589,-534.18,0.00013698,2]
[351909135,1738835439598,-500.0,0.00013698,2]
[351909136,1738835439607,-500.0,0.00013698,2]
[351909137,1738835439617,-500.0,0.00013698,2]
[351909138,1738835439627,-560.81,0.00013698,2]
[351909139,1738835439636,-500.0,0.00013698,2]
[351909140,1738835439645,-500.0,0.00013698,2]
[351909141,1738835439655,-1614.2,0.00013698,2]
[351909142,1738835439664,-500.0,0.00013698,2]
[351909143,1738835439674,-957.4,0.00013698,2]
[351909144,1738835439683,-500.0,0.00013698,2]
[351909145,1738835439693,-469.8873639,0.00013698,2]
[351909146,1738835439702,-6322.52,0.00013698,2]
[351909147,1738835439712,-500.0,0.00013698,2]
[351909148,1738835439721,-906.11,0.00013698,2]
[351909149,1738835439730,-500.0,0.00013698,2]
[351909150,1738835439739,-1057.13,0.00013698,2]
[351909151,1738835439749,-500.0,0.00013698,2]
[351909152,1738835439759,-234.65019654,0.00013698,2]
[351909153,1738835439776,-500.0,0.00013698,2]
[351909154,1738835439789,-500.0,0.00013698,2]
[351909155,1738835439798,-675.32,0.00013698,2]
[351909156,1738835439808,-500.0,0.00013698,2]
[351909157,1738835439819,-31686.25,0.00013698,2]
[351909158,1738835439828,-500.0,0.00013698,2]
[351909159,1738835439838,-500.0,0.00013698,2]
[351909160,1738835439849,-500.0,0.00013698,2]
[351909161,1738835439859,-13789.2,0.00013698,2]
[351909162,1738835439870,-1250.61,0.00013698,2]
[351909163,1738835439880,-500.0,0.00013698,2]
[351909164,1738835439890,-4721.51,0.00013698,2]
[351909165,1738835439899,-630.82,0.00013698,2]
[351909166,1738835439910,-3609.6,0.00013698,2]
[351909167,1738835439920,-1735.04,0.00013698,2]
[351909168,1738835439931,-1337.12,0.00013698,2]
[351909169,1738835439941,-500.0,0.00013698,2]
[351909170,1738835439951,-1888.61,0.00013698,2]
[351909171,1738835439960,-1110.05,0.00013698,2]
[351909172,1738835439971,-500.0,0.00013698,2]
[351909173,1738835439989,-500.0,0.00013698,2]
[351909174,1738835439999,-1735.69,0.00013698,2]
[351909175,1738835440010,-500.0,0.00013698,2]
[351909176,1738835440020,-791.08,0.00013698,2]
[351909177,1738835440030,-500.0,0.00013698,2]
[351909178,1738835440040,-500.0,0.00013698,2]
[351909179,1738835440050,-500.0,0.00013698,2]
[351909180,1738835440061,-810.34,0.00013698,2]
[351909181,1738835440071,-500.0,0.00013698,2]
[351909182,1738835440081,-500.0,0.00013698,2]
[351909183,1738835440094,-500.0,0.00013698,2]
[351909184,1738835440105,-500.0,0.00013698,2]
[351909186,1738835440116,-500.0,0.00013698,2]
[351909187,1738835440126,-1393.61,0.00013698,2]
[351909188,1738835440136,-613.73,0.00013698,2]
[351909189,1738835440146,-500.0,0.00013698,2]
[351909190,1738835440156,-557.72,0.00013698,2]
[351909191,1738835440166,-500.0,0.00013698,2]
[351909192,1738835440175,-734.15,0.00013698,2]
[351909193,1738835440185,-500.0,0.00013698,2]
[351909194,1738835440195,-500.0,0.00013698,2]
[351909195,1738835440205,-1944.74,0.00013698,2]
[351909196,1738835440215,-1243.14,0.00013698,2]
[351909197,1738835440225,-500.0,0.00013698,2]
[351909198,1738835440234,-500.0,0.00013698,2]
[351909199,1738835440244,-500.0,0.00013698,2]
[351909200,1738835440254,-500.0,0.00013698,2]
[351909201,1738835440263,-500.0,0.00013698,2]
[351909203,1738835440273,-606.95,0.00013698,2]
[351909204,1738835440283,-500.0,0.00013698,2]
[351909205,1738835440292,-215.18497554,0.00013698,2]
[351909206,1738835440302,-2902.65,0.00013698,2]
[351909207,1738835440312,-500.0,0.00013698,2]
[351909208,1738835440322,-500.0,0.00013698,2]
[351909209,1738835440335,-7935.02,0.00013698,2]
[351909210,1738835440349,-500.0,0.00013698,2]
[351909211,1738835440359,-3198.5,0.00013698,2]
[351909212,1738835440370,-1538.94,0.00013698,2]
[351909213,1738835440380,-500.0,0.00013698,2]
[351909215,1738835440390,-657.84,0.00013698,2]
[351909216,1738835440399,-500.0,0.00013698,2]
[351909217,1738835440409,-3222.99,0.00013698,2]
[351909218,1738835440419,-628.95,0.00013698,2]
[351909219,1738835440429,-1193.38,0.00013698,2]
[351909220,1738835440439,-1376.08,0.00013698,2]
[351909221,1738835440449,-2920.96,0.00013698,2]
[351909222,1738835440459,-500.0,0.00013698,2]
[351909223,1738835440469,-500.0,0.00013698,2]
[351909224,1738835440479,-644.49,0.00013698,2]
[351909225,1738835440488,-500.0,0.00013698,2]
[351909226,1738835440498,-11278.08,0.00013698,2]
[351909227,1738835440507,-505.28,0.00013698,2]
[351909228,1738835440517,-500.0,0.00013698,2]
[351909229,1738835440527,-500.0,0.00013698,2]
[351909230,1738835440536,-1369.38,0.00013698,2]
[351909231,1738835440546,-666.05,0.00013698,2]
[351909232,1738835440556,-964.81,0.00013698,2]
[351909233,1738835440566,-489.87987051,0.00013698,2]
[351909234,1738835440575,-853.01,0.00013698,2]
[351909235,1738835440585,-312.02886035,0.00013698,2]
[351909236,1738835440597,-855.16,0.00013698,2]
[351909237,1738835440607,-500.0,0.00013698,2]
[351909238,1738835440617,-500.0,0.00013698,2]
[351909239,1738835440626,-1237.93,0.00013698,2]
[351909240,1738835440636,-500.0,0.00013698,2]
[351909241,1738835440647,-2006.73,0.00013698,2]
[351909242,1738835440657,-500.0,0.00013698,2]
[351909243,1738835440667,-500.0,0.00013698,2]
[351909244,1738835440677,-2827.08,0.00013698,2]
[351909245,1738835440687,-2722.08,0.00013698,2]
[351909246,1738835440696,-200.17346,0.00013699,2]
[351909247,1738835440705,-872.060371,0.00013699,2]
[351909248,1738835440715,-500.0,0.00013699,2]
[351909249,1738835440725,-500.0,0.00013699,2]
[351909250,1738835440734,-500.0,0.00013699,2]
[351909251,1738835440745,-500.0,0.00013699,2]
[351909252,1738835440755,-500.0,0.00013699,2]
[351909253,1738835440765,-500.0,0.00013699,2]
[351909254,1738835440775,-500.0,0.00013699,2]
[351909255,1738835440785,-500.0,0.00013699,2]
[351909256,1738835440795,-500.0,0.00013699,2]
[351909257,1738835440806,-500.0,0.00013699,2]
[351909258,1738835440815,-500.0,0.00013699,2]
[351909259,1738835440825,-500.0,0.00013699,2]
[351909260,1738835440835,-331.00414229,0.00013699,2]
[351909261,1738835440846,-500.0,0.00013699,2]
[351909262,1738835440856,-500.0,0.00013699,2]
[351909263,1738835440865,-500.0,0.00013699,2]
[351909264,1738835440875,-500.0,0.00013699,2]
[351909265,1738835440886,-500.0,0.00013699,2]
[351909266,1738835440896,-500.0,0.00013699,2]
[351909267,1738835440906,-500.0,0.00013699,2]
[351909268,1738835440916,-500.0,0.00013699,2]
[351909269,1738835440926,-500.0,0.00013699,2]
[351909270,1738835440936,-500.0,0.00013699,2]
[351909271,1738835440946,-500.0,0.00013699,2]
[351909272,1738835440956,-500.0,0.00013699,2]
[351909273,1738835440965,-500.0,0.00013699,2]
[351909274,1738835440975,-500.0,0.00013699,2]
[351909275,1738835440986,-500.0,0.00013699,2]
[351909276,1738835440995,-500.0,0.00013699,2]
[351909277,1738835441006,-500.0,0.00013699,2]
[351909278,1738835441016,-500.0,0.00013699,2]
[351909279,1738835441026,-500.0,0.00013699,2]
[351909280,1738835441036,-500.0,0.00013699,2]
[351909281,1738835441046,-500.0,0.00013699,2]
[351909282,1738835441056,-500.0,0.00013699,2]
[351909283,1738835441066,-500.0,0.00013699,2]
[351909284,1738835441076,-500.0,0.00013699,2]
[351909285,1738835441086,-500.0,0.00013699,2]
[351909286,1738835441096,-500.0,0.00013699,2]
[351909287,1738835441106,-500.0,0.00013699,2]
[351909288,1738835441115,-500.0,0.00013699,2]
[351909289,1738835441126,-500.0,0.00013699,2]
[351909290,1738835441136,-500.0,0.00013699,2]
[351909291,1738835441146,-500.0,0.00013699,2]
[351909292,1738835441156,-500.0,0.00013699,2]
[351909293,1738835441166,-410.6478667,0.00013707,2]
[351909294,1738835441175,-178.7979496,0.00013834,2]
[351909295,1738835441185,-500.0,0.00013834,2]
[351909296,1738835441195,-387.67092734,0.00013834,2]
[351909297,1738835441205,-500.0,0.00013834,2]
[351909298,1738835441215,-500.0,0.00013834,2]
[351909299,1738835441224,-500.0,0.00013835,2]
[351909300,1738835441234,-500.0,0.00013835,2]
[351909301,1738835441244,-500.0,0.00013835,2]
[351909302,1738835441254,-566.83922036,0.00013835,2]
[351909303,1738835441263,-500.0,0.00013835,2]
[351909304,1738835441273,-500.0,0.00013835,2]
[351909305,1738835441283,-500.0,0.00013835,2]
[351909306,1738835441295,-550.04,0.00013835,2]
[351909307,1738835441305,-500.0,0.00013835,2]
[351909308,1738835441315,-500.0,0.00013835,2]
[351909309,1738835441325,-629.2,0.00013835,2]
[351909310,1738835441339,-571.15,0.00013835,2]
[351909311,1738835441349,-500.0,0.00013835,2]
[351909312,1738835441360,-500.0,0.00013835,2]
[351909313,1738835441370,-500.0,0.00013835,2]
[351909314,1738835441381,-500.0,0.00013835,2]
[351909315,1738835441391,-500.0,0.00013835,2]
[351909316,1738835441401,-1051.97,0.00013835,2]
[351909317,1738835441411,-500.0,0.00013835,2]
[351909318,1738835441421,-967.1,0.00013835,2]
[351909319,1738835441431,-829.97,0.00013835,2]
[351909320,1738835441442,-615.5,0.00013835,2]
[351909321,1738835441452,-500.0,0.00013835,2]
[351909322,1738835441462,-579.2509459,0.00013835,2]
[351909323,1738835441472,-505.53,0.00013835,2]
[351909324,1738835441481,-500.0,0.00013835,2]
[351909325,1738835441491,-500.0,0.00013835,2]
[351909326,1738835441501,-500.0,0.00013835,2]
[351909327,1738835441511,-180.26221922,0.00013835,2]
[351909328,1738835441521,-500.0,0.00013835,2]
[351909329,1738835441531,-500.0,0.00013835,2]
[351909330,1738835441541,-500.0,0.00013835,2]
[351909331,1738835441550,-500.0,0.00013835,2]
[351909332,1738835441560,-500.0,0.00013835,2]
[351909333,1738835441570,-992.96,0.00013835,2]
[351909334,1738835441579,-794.86,0.00013835,2]
[351909335,1738835441591,-500.0,0.00013835,2]
[351909336,1738835441601,-500.0,0.00013835,2]
[351909337,1738835441610,-381.99598469,0.00013835,2]
[351909338,1738835441620,-1307.45,0.00013835,2]
[351909339,1738835441629,-500.0,0.00013835,2]
[351909340,1738835441639,-500.0,0.00013835,2]
[351909341,1738835441648,-500.0,0.00013835,2]
[351909342,1738835441659,-500.0,0.00013835,2]
[351909343,1738835441668,-872.15,0.00013835,2]
[351909344,1738835441678,-500.0,0.00013835,2]
[351909345,1738835441687,-500.0,0.00013835,2]
[351909346,1738835441697,-500.0,0.00013835,2]
[351909347,1738835441721,-500.0,0.00013835,2]
[351909348,1738835441730,-500.0,0.00013835,2]
[351909349,1738835441740,-500.0,0.00013835,2]
[351909350,1738835441750,-527.98,0.00013835,2]
[351909351,1738835441760,-500.0,0.00013835,2]
[351909352,1738835441770,-534.18,0.00013835,2]
[351909353,1738835441780,-500.0,0.00013835,2]
[351909354,1738835441789,-509.0015204,0.00013835,2]
[351909355,1738835441799,-500.0,0.00013835,2]
[351909356,1738835441809,-570.88527049,0.00013835,2]
[351909357,1738835441818,-560.81,0.00013835,2]
[351909358,1738835441828,-500.0,0.00013835,2]
[351909359,1738835441838,-1614.2,0.00013835,2]
[351909360,1738835441848,-957.4,0.00013835,2]
[351909361,1738835441858,-500.0,0.00013835,2]
[351909362,1738835441868,-6322.52,0.00013835,2]
[351909363,1738835441878,-500.0,0.00013835,2]
[351909364,1738835441887,-906.11,0.00013835,2]
[351909365,1738835441898,-500.0,0.00013835,2]
[351909366,1738835441909,-1057.13,0.00013835,2]
[351909367,1738835441918,-500.0,0.00013835,2]
[351909368,1738835441929,-500.0,0.00013835,2]
[351909369,1738835441938,-500.0,0.00013835,2]
[351909370,1738835441948,-675.32,0.00013835,2]
[351909371,1738835441958,-31686.25,0.00013835,2]
[351909372,1738835441968,-500.0,0.00013835,2]
[351909373,1738835441978,-500.0,0.00013835,2]
[351909374,1738835441987,-500.0,0.00013835,2]
[351909375,1738835441997,-13789.2,0.00013835,2]
[351909376,1738835442006,-1250.61,0.00013835,2]
[351909377,1738835442016,-4721.51,0.00013835,2]
[351909378,1738835442026,-630.82,0.00013835,2]
[351909379,1738835442036,-3609.6,0.00013835,2]
[351909380,1738835442045,-1735.04,0.00013835,2]
[351909381,1738835442055,-1337.12,0.00013835,2]
[351909382,1738835442065,-500.0,0.00013835,2]
[351909383,1738835442075,-1888.61,0.00013835,2]
[351909384,1738835442085,-1110.05,0.00013835,2]
[351909385,1738835442096,-500.0,0.00013835,2]
[351909386,1738835442106,-500.0,0.00013835,2]
[351909387,1738835442116,-1735.69,0.00013835,2]
[351909388,1738835442126,-500.0,0.00013835,2]
[351909389,1738835442136,-791.08,0.00013835,2]
[351909390,1738835442145,-500.0,0.00013835,2]
[351909391,1738835442155,-810.34,0.00013835,2]
[351909392,1738835442165,-500.0,0.00013835,2]
[351909393,1738835442175,-500.0,0.00013835,2]
[351909394,1738835442184,-500.0,0.00013835,2]
[351909395,1738835442194,-1393.61,0.00013835,2]
[351909396,1738835442203,-613.73,0.00013835,2]
[351909397,1738835442213,-557.72,0.00013835,2]
[351909398,1738835442223,-500.0,0.00013835,2]
[351909399,1738835442233,-734.15,0.00013835,2]
[351909400,1738835442242,-500.0,0.00013835,2]
[351909401,1738835442252,-1944.74,0.00013835,2]
[351909402,1738835442261,-1243.14,0.00013835,2]
[351909403,1738835442271,-500.0,0.00013835,2]
[351909404,1738835442281,-500.0,0.00013835,2]
[351909405,1738835442291,-500.0,0.00013835,2]
[351909406,1738835442301,-606.95,0.00013835,2]
[351909407,1738835442311,-500.0,0.00013835,2]
[351909408,1738835442321,-2902.65,0.00013835,2]
[351909409,1738835442332,-500.0,0.00013835,2]
[351909410,1738835442345,-7935.02,0.00013835,2]
[351909411,1738835442355,-500.0,0.00013835,2]
[351909412,1738835442365,-3198.5,0.00013835,2]
[351909413,1738835442375,-1538.94,0.00013835,2]
[351909414,1738835442385,-657.84,0.00013835,2]
[351909415,1738835442395,-3222.99,0.00013835,2]
[351909416,1738835442405,-500.0,0.00013835,2]
[351909417,1738835442416,-628.95,0.00013835,2]
[351909418,1738835442426,-1193.38,0.00013835,2]
[351909419,1738835442435,-1376.08,0.00013835,2]
[351909420,1738835442445,-2920.96,0.00013835,2]
[351909421,1738835442454,-500.0,0.00013835,2]
[351909422,1738835442464,-644.49,0.00013835,2]
[351909423,1738835442474,-500.0,0.00013835,2]
[351909424,1738835442484,-540.26000189,0.00013835,2]
[351909425,1738835442493,-11278.08,0.00013835,2]
[351909426,1738835442504,-505.28,0.00013835,2]
[351909427,1738835442514,-500.0,0.00013835,2]
[351909428,1738835442524,-1369.38,0.00013835,2]
[351909429,1738835442533,-666.05,0.00013835,2]
[351909430,1738835442543,-964.81,0.00013835,2]
[351909431,1738835442553,-853.01,0.00013835,2]
[351909432,1738835442563,-855.16,0.00013835,2]
[351909433,1738835442572,-500.0,0.00013835,2]
[351909434,1738835442582,-1237.93,0.00013835,2]
[351909435,1738835442592,-500.0,0.00013835,2]
[351909436,1738835442601,-2006.73,0.00013835,2]
[351909437,1738835442611,-500.0,0.00013835,2]
[351909438,1738835442620,-2827.08,0.00013835,2]
[351909439,1738835442630,-2722.08,0.00013835,2]
[351909440,1738835442640,-282.4399141,0.00013863,2]
[351909441,1738835442649,-215.4976166,0.00013863,2]
[351909442,1738835442659,-431.3761108,0.00013863,2]
[351909443,1738835442669,-153.4425861,0.00013863,2]
[351909444,1738835442678,-308.695529,0.00013863,2]
[351909445,1738835442688,-308.8951446,0.00013863,2]
[351909446,1738835442698,-819.999999,0.0001388,2]
[351909447,1738835442707,-500.0,0.00013972,2]
[351909448,1738835442717,-500.0,0.00013972,2]
[351909449,1738835442726,-500.0,0.00013972,2]
[351909450,1738835442736,-500.0,0.00013972,2]
[351909451,1738835442745,-550.04,0.00013972,2]
[351909452,1738835442755,-500.0,0.00013972,2]
[351909453,1738835442765,-500.0,0.00013972,2]
[351909454,1738835442775,-629.2,0.00013972,2]
[351909455,1738835442784,-571.15,0.00013972,2]